bitfinex/quotes_BTCUSD_20220105
["timestamp","ask_amount","ask_price","bid_price","bid_amount"]
[1641355632924,0.06309365,46417.0,46416.0,0.42]
[1641355633125,0.06309365,46417.0,46416.0,0.63462466]
[1641355633925,0.05568843,46417.0,46416.0,0.63462466]
[1641355634626,0.05568843,46417.0,46416.0,0.62748843]
[1641355634827,0.01648843,46417.0,46416.0,1.28748843]
[1641355635028,0.01648843,46417.0,46416.0,1.36436843]
[1641355635279,0.01648843,46417.0,46416.0,0.70436843]
[1641355636373,0.01648843,46417.0,46416.0,0.62748843]
[1641355636574,0.00748843,46417.0,46416.0,0.62748843]
[1641355646629,0.00748843,46417.0,46416.0,0.01]
[1641355646630,0.45923378,46417.0,46416.0,0.01]
[1641355646830,0.51311918,46417.0,46416.0,0.01]
[1641355647026,0.61311918,46417.0,46416.0,0.01]
[1641355647234,0.96806818,46417.0,46416.0,0.01]
[1641355648730,0.62311918,46417.0,46416.0,0.01]
[1641355650178,0.61311918,46417.0,46416.0,0.01]
[1641355650785,0.62311918,46417.0,46416.0,0.01]
[1641355652082,0.96806818,46417.0,46416.0,0.01]
[1641355652882,0.62211918,46417.0,46416.0,0.01]
[1641355654227,0.61311918,46417.0,46416.0,0.01]
[1641355654428,0.96806818,46417.0,46416.0,0.01]
[1641355654827,0.97706818,46417.0,46416.0,0.01]
[1641355656029,0.96806818,46417.0,46416.0,0.01]
[1641355656831,0.97706818,46417.0,46416.0,0.01]
[1641355657233,1.53537235,46417.0,46416.0,0.01]
[1641355657685,1.07829244,46417.0,46416.0,0.01]
[1641355658785,1.07929244,46417.0,46416.0,0.01]
[1641355659586,1.35466737,46417.0,46416.0,0.01]
[1641355660188,1.34466737,46417.0,46416.0,0.01]
[1641355660789,1.35466737,46417.0,46416.0,0.01]
[1641355662026,1.34466737,46417.0,46416.0,0.01]
[1641355662825,1.35466737,46417.0,46416.0,0.01]
[1641355664027,1.34466737,46417.0,46416.0,0.01]
[1641355664631,0.96929244,46417.0,46416.0,0.01]
[1641355664829,0.87706818,46417.0,46416.0,0.01]
[1641355665678,1.12619151,46417.0,46416.0,0.01]
[1641355665876,0.87706818,46417.0,46416.0,0.01]
[1641355666076,1.01806818,46417.0,46416.0,0.01]
[1641355666877,1.02806818,46417.0,46416.0,0.01]
[1641355667478,0.97418278,46417.0,46416.0,0.01]
[1641355667876,0.92418278,46417.0,46416.0,0.01]
[1641355668078,0.81418278,46417.0,46416.0,0.01]
[1641355668681,0.00748843,46417.0,46416.0,0.01]
[1641355668944,0.01648843,46417.0,46416.0,0.022]
[1641355669139,0.22,46424.0,46423.0,0.00126476]
[1641355669341,0.22,46424.0,46423.0,0.27735276]
[1641355670939,0.228,46424.0,46423.0,0.31935276]
[1641355671344,0.228,46424.0,46423.0,0.56525949]
[1641355672678,0.22,46424.0,46423.0,0.52325949]
[1641355672978,0.228,46424.0,46423.0,0.56525949]
[1641355676184,0.22,46424.0,46423.0,0.52325949]
[1641355676831,0.228,46424.0,46423.0,0.56525949]
[1641355678231,0.22,46424.0,46423.0,0.52325949]
[1641355678630,0.273871,46424.0,46423.0,0.52199473]
[1641355679030,0.281871,46424.0,46423.0,0.55999473]
[1641355679432,0.281871,46424.0,46423.0,0.314088]
[1641355679633,0.281871,46424.0,46423.0,0.038]
[1641355680282,0.27510503,46424.0,46422.0,0.053866]
[1641355680882,0.33497895,46424.0,46422.0,0.097866]
[1641355682186,0.32897895,46424.0,46422.0,0.053866]
[1641355682584,0.27510503,46424.0,46422.0,0.053866]
[1641355682784,0.22123403,46424.0,46422.0,0.053866]
[1641355682987,0.22823403,46424.0,46422.0,0.094866]
[1641355684237,0.22123403,46424.0,46422.0,0.053866]
[1641355684937,0.22323403,46424.0,46422.0,0.094866]
[1641355685738,0.22382854,46424.0,46422.0,0.094866]
[1641355686137,0.21682854,46424.0,46422.0,0.053866]
[1641355686941,0.22382854,46424.0,46422.0,0.096866]
[1641355688181,0.21682854,46424.0,46422.0,0.053866]
[1641355688780,0.21682854,46424.0,46423.0,0.354949]
[1641355688982,0.22282854,46424.0,46423.0,0.354949]
[1641355689784,0.22282854,46424.0,46423.0,0.60006807]
[1641355690783,0.21682854,46424.0,46423.0,0.60006807]
[1641355690983,0.21982854,46424.0,46423.0,0.64906807]
[1641355692144,0.21682854,46424.0,46423.0,0.60006807]
[1641355692944,0.21882854,46424.0,46423.0,0.65706807]
[1641355694143,0.21682854,46424.0,46423.0,0.60006807]
[1641355694947,0.21682854,46424.0,46423.0,0.65406807]
[1641355696282,0.21682854,46424.0,46423.0,0.60006807]
[1641355696885,0.21682854,46424.0,46423.0,0.65706807]
[1641355698284,0.21682854,46424.0,46423.0,0.60006807]
[1641355698928,0.21782854,46424.0,46423.0,0.64306807]
[1641355700232,0.21682854,46424.0,46423.0,0.60006807]
[1641355701030,0.21782854,46424.0,46423.0,0.65706807]
[1641355702130,0.21782854,46424.0,46423.0,0.60006807]
[1641355702331,0.21682854,46424.0,46423.0,0.60006807]
[1641355702984,0.21782854,46424.0,46423.0,0.65706807]
[1641355704381,0.21682854,46424.0,46423.0,0.60006807]
[1641355705083,0.21682854,46424.0,46423.0,0.65206807]
[1641355705781,0.21682854,46424.0,46423.0,0.406949]
[1641355706181,0.21682854,46424.0,46423.0,0.354949]
[1641355707050,0.21882854,46424.0,46423.0,0.403949]
[1641355707857,0.21882854,46424.0,46423.0,0.65803683]
[1641355708053,0.21882854,46424.0,46423.0,0.403949]
[1641355708254,0.21882854,46424.0,46423.0,0.354949]
[1641355708255,0.21682854,46424.0,46423.0,0.354949]
[1641355708952,0.21682854,46424.0,46423.0,0.386949]
[1641355710179,0.21682854,46424.0,46423.0,0.354949]
[1641355710385,0.21682854,46424.0,46423.0,0.60131095]
[1641355710983,0.21682854,46424.0,46423.0,0.63631095]
[1641355712482,0.21682854,46424.0,46423.0,0.60131095]
[1641355713084,0.21782854,46424.0,46423.0,0.64531095]
[1641355714433,0.21682854,46424.0,46423.0,0.60131095]
[1641355715038,0.21682854,46424.0,46423.0,0.66231095]
[1641355716238,0.21682854,46424.0,46423.0,0.60131095]
[1641355717138,0.21682854,46424.0,46423.0,0.63431095]
[1641355718392,0.21682854,46424.0,46423.0,0.60131095]
[1641355718993,0.21682854,46424.0,46423.0,0.63531095]
[1641355720392,0.21682854,46424.0,46423.0,0.60131095]
[1641355721093,0.21682854,46424.0,46423.0,0.63431095]
[1641355722035,0.21682854,46424.0,46423.0,0.78558811]
[1641355722234,0.21682854,46424.0,46423.0,1.73308716]
[1641355722434,0.21682854,46424.0,46423.0,0.50622616]
[1641355723034,0.21682854,46424.0,46423.0,0.53322616]
[1641355724238,0.21682854,46424.0,46423.0,0.79538069]
[1641355724438,0.21682854,46424.0,46423.0,0.76838069]
[1641355724637,0.21682854,46424.0,46423.0,0.76607069]
[1641355724839,0.21682854,46424.0,46423.0,2.83632608]
[1641355725039,0.00482283,46425.0,46423.0,2.22518208]
[1641355725291,0.00482283,46425.0,46424.0,1.416021]
[1641355726289,0.00433283,46425.0,46424.0,1.416021]
[1641355726490,0.42,46432.0,46424.0,1.416021]
[1641355726690,0.42,46432.0,46429.0,0.053854]
[1641355726890,0.42,46432.0,46430.0,0.35613303]
[1641355727090,0.42,46432.0,46430.0,0.65706318]
[1641355727291,0.42,46432.0,46430.0,0.40998803]
[1641355728090,0.42482212,46432.0,46430.0,0.40998803]
[1641355728690,0.42475212,46432.0,46430.0,0.40998803]
[1641355728931,0.42475212,46432.0,46431.0,0.25327472]
[1641355729133,0.42475212,46432.0,46431.0,0.275971]
[1641355730232,0.42475212,46432.0,46431.0,0.52856795]
[1641355731039,0.42475212,46432.0,46431.0,0.59556795]
[1641355731636,0.42475212,46432.0,46431.0,1.73556795]
[1641355732436,0.64475212,46432.0,46431.0,1.73556795]
[1641355732988,0.64475212,46432.0,46431.0,1.66856795]
[1641355733286,0.64475212,46432.0,46431.0,1.73156795]
[1641355734487,0.64475212,46432.0,46431.0,1.66856795]
[1641355735086,0.64475212,46432.0,46431.0,1.71556795]
[1641355736736,0.64475212,46432.0,46431.0,0.57556795]
[1641355736934,0.64475212,46432.0,46431.0,0.52856795]
[1641355737134,0.64475212,46432.0,46431.0,0.59456795]
[1641355738334,0.64475212,46432.0,46431.0,0.52856795]
[1641355738637,0.64475212,46432.0,46431.0,0.275971]
[1641355739035,0.64475212,46432.0,46431.0,0.339971]
[1641355740287,0.64475212,46432.0,46431.0,0.275971]
[1641355741088,0.64475212,46432.0,46431.0,0.337971]
[1641355742388,0.64475212,46432.0,46431.0,0.275971]
[1641355743090,0.64475212,46432.0,46431.0,0.345971]
[1641355744329,0.64475212,46432.0,46431.0,0.275971]
[1641355745131,0.64475212,46432.0,46431.0,0.350971]
[1641355747233,0.64475212,46432.0,46431.0,0.275971]
[1641355747885,0.64475212,46432.0,46431.0,0.52405803]
[1641355748190,0.64475212,46432.0,46431.0,0.275971]
[1641355749085,0.64475212,46432.0,46431.0,0.337971]
[1641355750385,0.64475212,46432.0,46431.0,0.275971]
[1641355751187,0.64475212,46432.0,46431.0,0.346971]
[1641355753240,0.64475212,46432.0,46431.0,0.415971]
[1641355754446,0.64475212,46432.0,46431.0,0.275971]
[1641355755287,0.64475212,46432.0,46431.0,0.350971]
[1641355756386,0.64475212,46432.0,46431.0,0.275971]
[1641355757186,0.64475212,46432.0,46431.0,0.061]
[1641355758388,0.64475212,46432.0,46430.0,0.053855]
[1641355759337,0.00151166,46431.0,46430.0,0.052]
[1641355760336,0.00151166,46431.0,46429.0,0.161564]
[1641355760535,0.00151166,46431.0,46430.0,0.354949]
[1641355761136,0.00151166,46431.0,46430.0,0.052]
[1641355762536,0.00151166,46431.0,46429.0,0.161564]
[1641355763186,0.00151166,46431.0,46429.0,0.214564]
[1641355763686,0.00151166,46431.0,46430.0,0.354949]
[1641355763886,0.00151166,46431.0,46429.0,0.214564]
[1641355764489,0.00151166,46431.0,46429.0,0.161564]
[1641355764887,0.00151166,46431.0,46430.0,0.354949]
[1641355766934,0.00151166,46431.0,46429.0,0.161564]
[1641355767134,0.00151166,46431.0,46430.0,0.05]
[1641355767135,0.00651166,46431.0,46430.0,0.05]
[1641355768357,0.00651166,46431.0,46429.0,0.161564]
[1641355768536,0.00151166,46431.0,46429.0,0.161564]
[1641355768936,0.00151166,46431.0,46430.0,0.354949]
[1641355769137,0.00651166,46431.0,46430.0,0.354949]
[1641355770488,0.00151166,46431.0,46430.0,0.354949]
[1641355771188,0.00151166,46431.0,46430.0,0.404949]
[1641355772393,0.00151166,46431.0,46430.0,0.764949]
[1641355773191,0.00151166,46431.0,46430.0,0.807949]
[1641355773594,0.00151166,46431.0,46430.0,1.947949]
[1641355774459,0.00151166,46431.0,46430.0,0.354949]
[1641355775059,0.00151166,46431.0,46430.0,1.494949]
[1641355775263,0.00151166,46431.0,46430.0,1.577949]
[1641355775962,0.00151166,46431.0,46430.0,0.437949]
[1641355776560,0.00151166,46431.0,46430.0,0.354949]
[1641355777161,0.00151166,46431.0,46430.0,0.423949]
[1641355778388,0.00151166,46431.0,46430.0,0.354949]
[1641355779289,0.00151166,46431.0,46430.0,0.416949]
[1641355780490,0.00151166,46431.0,46430.0,0.354949]
[1641355781290,0.00651166,46431.0,46430.0,0.400949]
[1641355781534,0.64126378,46432.0,46430.0,0.400949]
[1641355782435,0.64126378,46432.0,46430.0,0.354949]
[1641355783235,0.64726378,46432.0,46430.0,0.401949]
[1641355784236,0.65082212,46432.0,46430.0,0.401949]
[1641355784439,0.64482212,46432.0,46430.0,0.354949]
[1641355785039,0.00118915,46431.0,46430.0,0.354949]
[1641355785302,0.00118915,46431.0,46430.0,0.401949]
[1641355786103,0.00118915,46431.0,46430.0,0.451949]
[1641355786503,0.00118915,46431.0,46430.0,0.404949]
[1641355787304,0.00118915,46431.0,46430.0,0.464949]
[1641355788403,0.00118915,46431.0,46430.0,0.404949]
[1641355789238,0.00118915,46431.0,46430.0,0.473949]
[1641355790543,0.00118915,46431.0,46430.0,0.404949]
[1641355790738,0.00118915,46431.0,46430.0,0.67015686]
[1641355791339,0.00118915,46431.0,46430.0,0.73515686]
[1641355792437,0.00118915,46431.0,46430.0,0.67015686]
[1641355793298,0.00118915,46431.0,46430.0,0.73515686]
[1641355793699,0.00118915,46431.0,46430.0,1.87515686]
[1641355794497,0.00118915,46431.0,46430.0,1.81015686]
[1641355795298,0.00118915,46431.0,46430.0,1.87615686]
[1641355796543,0.00118915,46431.0,46430.0,1.81015686]
[1641355797145,0.00118915,46431.0,46430.0,1.544949]
[1641355797346,0.00118915,46431.0,46430.0,1.610949]
[1641355798546,0.00118915,46431.0,46430.0,1.544949]
[1641355799246,0.00118915,46431.0,46430.0,0.469949]
[1641355800490,0.00118915,46431.0,46430.0,0.404949]
[1641355801291,0.00118915,46431.0,46430.0,0.468949]
[1641355803193,0.00118915,46431.0,46430.0,0.531949]
[1641355804643,0.00118915,46431.0,46430.0,0.404949]
[1641355805243,0.00118915,46431.0,46430.0,0.468949]
[1641355806545,0.00118915,46431.0,46430.0,0.404949]
[1641355807348,0.00118915,46431.0,46430.0,0.468949]
[1641355808497,0.00118915,46431.0,46430.0,0.404949]
[1641355809393,0.00118915,46431.0,46430.0,0.468949]
[1641355810397,0.00118915,46431.0,46430.0,0.71759258]
[1641355810595,0.00118915,46431.0,46430.0,0.65359258]
[1641355811002,0.00118915,46431.0,46430.0,1.79359258]
[1641355811438,0.00118915,46431.0,46430.0,1.86159258]
[1641355813340,0.00118915,46431.0,46430.0,1.92759258]
[1641355814441,0.00118915,46431.0,46430.0,1.79359258]
[1641355814840,0.00118915,46431.0,46430.0,1.544949]
[1641355815291,0.00118915,46431.0,46430.0,1.610949]
[1641355816593,0.00118915,46431.0,46430.0,1.544949]
[1641355816796,0.00118915,46431.0,46430.0,0.354949]
[1641355817193,0.00118915,46431.0,46430.0,0.409949]
[1641355818602,0.00118915,46431.0,46430.0,0.354949]
[1641355819241,0.00618915,46431.0,46430.0,0.405949]
[1641355820642,0.00118915,46431.0,46430.0,0.354949]
[1641355821247,0.00118915,46431.0,46430.0,0.409949]
[1641355821442,0.00118915,46431.0,46430.0,0.459949]
[1641355823289,0.00118915,46431.0,46430.0,0.458949]
[1641355824693,0.00118915,46431.0,46430.0,0.354949]
[1641355825292,0.00718915,46431.0,46430.0,0.406949]
[1641355826544,0.00718915,46431.0,46430.0,0.65768831]
[1641355826545,0.00118915,46431.0,46430.0,0.65768831]
[1641355827334,0.00118915,46431.0,46430.0,0.71968831]
[1641355828536,0.00118915,46431.0,46430.0,0.65768831]
[1641355829241,0.00118915,46431.0,46430.0,0.72068831]
[1641355830496,0.00118915,46431.0,46430.0,0.65768831]
[1641355831193,0.22,46432.0,46430.0,0.65768831]
[1641355831398,0.22,46432.0,46431.0,0.6473275]
[1641355831594,0.22,46432.0,46431.0,0.9232435]
[1641355831897,0.22,46432.0,46431.0,2.0632435]
[1641355833295,0.22482205,46432.0,46431.0,2.1452435]
[1641355833794,0.22,46432.0,46431.0,2.1452435]
[1641355834841,0.4245,46439.0,46431.0,1.7452435]
[1641355835042,0.4245,46439.0,46435.0,1.14]
[1641355835241,0.4245,46439.0,46436.0,0.6594909]
[1641355835442,0.42,46439.0,46436.0,0.6594909]
[1641355835842,0.42,46439.0,46437.0,1.14]
[1641355836043,0.42,46439.0,46438.0,0.275868]
[1641355836240,0.42,46439.0,46438.0,1.415868]
[1641355837242,0.421,46439.0,46438.0,1.473868]
[1641355838890,0.42482135,46439.0,46438.0,1.415868]
[1641355839091,0.64482135,46439.0,46438.0,1.415868]
[1641355839293,0.64682135,46439.0,46438.0,1.475868]
[1641355840590,0.64482135,46439.0,46438.0,1.415868]
[1641355841465,0.64682135,46439.0,46438.0,1.475868]
[1641355842063,0.64817421,46439.0,46438.0,1.475868]
[1641355842464,0.64617421,46439.0,46438.0,1.415868]
[1641355843263,0.64817421,46439.0,46438.0,1.476868]
[1641355843463,0.64817421,46439.0,46438.0,0.336868]
[1641355843865,0.64817421,46439.0,46438.0,0.061]
[1641355844466,0.64817421,46439.0,46437.0,0.053846]
[1641355844666,0.64617421,46439.0,46437.0,0.053846]
[1641355844871,0.64617421,46439.0,46438.0,0.354949]
[1641355845893,0.64617421,46439.0,46437.0,0.116846]
[1641355846592,0.64617421,46439.0,46437.0,0.053846]
[1641355847093,0.70002821,46439.0,46437.0,0.053846]
[1641355847292,0.70302821,46439.0,46437.0,0.103846]
[1641355847498,0.64917421,46439.0,46437.0,0.103846]
[1641355848094,0.70302921,46439.0,46437.0,0.103846]
[1641355848496,0.70002921,46439.0,46437.0,0.053846]
[1641355849347,0.70402921,46439.0,46437.0,0.101846]
[1641355850645,0.70002921,46439.0,46437.0,0.053846]
[1641355851350,0.70602921,46439.0,46437.0,0.099846]
[1641355853419,0.71102921,46439.0,46437.0,0.144846]
[1641355854619,0.70002921,46439.0,46437.0,0.053846]
[1641355855420,0.70502921,46439.0,46437.0,0.099846]
[1641355856640,0.70002921,46439.0,46437.0,0.053846]
[1641355857241,0.70502921,46439.0,46437.0,0.099846]
[1641355858643,0.70002921,46439.0,46437.0,0.053846]
[1641355859444,0.70502921,46439.0,46437.0,0.099846]
[1641355860696,0.70002921,46439.0,46437.0,0.053846]
[1641355861099,0.69502921,46439.0,46437.0,0.053846]
[1641355861299,0.70002921,46439.0,46437.0,0.099846]
[1641355861697,0.69502921,46439.0,46437.0,0.099846]
[1641355863298,0.70002921,46439.0,46437.0,0.143846]
[1641355864542,0.70002921,46439.0,46437.0,0.097846]
[1641355864743,0.69002921,46439.0,46437.0,0.053846]
[1641355865349,0.69502921,46439.0,46437.0,0.098846]
[1641355866644,0.69002921,46439.0,46437.0,0.053846]
[1641355867445,0.69502921,46439.0,46437.0,0.099846]
[1641355868100,0.69562355,46439.0,46437.0,0.099846]
[1641355868701,0.69062355,46439.0,46437.0,0.053846]
[1641355869402,0.69562355,46439.0,46437.0,0.099846]
[1641355870304,0.68562355,46439.0,46437.0,0.099846]
[1641355870702,0.68062355,46439.0,46437.0,0.053846]
[1641355871303,0.68562355,46439.0,46437.0,0.100846]
[1641355872542,0.68562355,46439.0,46437.0,0.053846]
[1641355872746,0.68062355,46439.0,46437.0,0.053846]
[1641355873346,0.68562355,46439.0,46437.0,0.100846]
[1641355874547,0.68062355,46439.0,46437.0,0.053846]
[1641355875411,0.68562355,46439.0,46438.0,0.354949]
[1641355876214,0.68562355,46439.0,46437.0,0.100846]
[1641355876615,0.68062355,46439.0,46437.0,0.053846]
[1641355877515,0.68562355,46439.0,46437.0,0.099846]
[1641355878716,0.68062355,46439.0,46437.0,0.053846]
[1641355879344,0.68762355,46439.0,46437.0,0.096846]
[1641355880544,0.68762355,46439.0,46437.0,0.053846]
[1641355880745,0.67562355,46439.0,46437.0,0.053846]
[1641355881347,0.68262355,46439.0,46437.0,0.096846]
[1641355882547,0.68262355,46439.0,46437.0,0.053846]
[1641355882548,0.67562355,46439.0,46437.0,0.053846]
[1641355883493,0.78262355,46439.0,46437.0,0.096846]
[1641355884702,0.68262355,46439.0,46437.0,0.096846]
[1641355885299,0.68262355,46439.0,46437.0,0.142846]
[1641355885497,0.68862355,46439.0,46437.0,0.142846]
[1641355886673,0.63476855,46439.0,46437.0,0.142846]
[1641355886970,0.63476855,46439.0,46438.0,0.354949]
[1641355887371,0.63876855,46439.0,46438.0,0.354949]
[1641355887769,0.63876855,46439.0,46437.0,0.189846]
[1641355888270,0.69262355,46439.0,46437.0,0.189846]
[1641355889171,0.69262355,46439.0,46438.0,0.354949]
[1641355889372,0.69662355,46439.0,46438.0,0.354949]
[1641355889770,0.68362355,46439.0,46438.0,0.354949]
[1641355889969,0.68362355,46439.0,46437.0,0.148846]
[1641355890198,0.67562355,46439.0,46438.0,0.354949]
[1641355890699,0.67562355,46439.0,46437.0,0.053846]
[1641355891403,0.67862355,46439.0,46437.0,0.101846]
[1641355893500,0.68162355,46439.0,46437.0,0.149846]
[1641355894348,0.73547988,46439.0,46437.0,0.149846]
[1641355894749,0.72947988,46439.0,46437.0,0.053846]
[1641355895350,0.73347988,46439.0,46437.0,0.101846]
[1641355897252,0.72947988,46439.0,46437.0,0.053846]
[1641355897450,0.73447988,46439.0,46437.0,0.098846]
[1641355897707,0.68062355,46439.0,46437.0,0.098846]
[1641355898707,0.67562355,46439.0,46437.0,0.053846]
[1641355899509,0.68062355,46439.0,46437.0,0.098846]
[1641355902748,0.67562355,46439.0,46437.0,0.053846]
[1641355903347,0.68262355,46439.0,46437.0,0.096846]
[1641355904052,0.8539011,46438.0,46437.0,0.043]
[1641355904248,1.7365851,46438.0,46437.0,0.043]
[1641355904453,1.83783489,46438.0,46437.0,0.043]
[1641355904649,1.83783489,46438.0,46427.0,0.30353108]
[1641355904855,0.23867921,46429.0,46427.0,0.30353108]
[1641355905049,0.32501973,46428.0,46427.0,0.01243108]
[1641355905304,0.58951376,46428.0,46427.0,0.06630208]
[1641355906101,0.64338476,46428.0,46427.0,0.06630208]
[1641355906302,0.64338476,46428.0,46427.0,0.053871]
[1641355906802,0.37889073,46428.0,46427.0,0.053871]
[1641355907408,0.38289073,46428.0,46427.0,0.053871]
[1641355908702,0.37889073,46428.0,46427.0,0.053871]
[1641355909374,0.38289073,46428.0,46427.0,0.053871]
[1641355909980,0.004,46428.0,46427.0,0.053871]
[1641355910378,0.004,46428.0,46427.0,0.40882]
[1641355910777,0.54247629,46435.0,46430.0,0.053862]
[1641355910976,0.54247629,46435.0,46429.0,0.107724]
[1641355910977,0.053863,46433.0,46432.0,0.053863]
[1641355911177,0.30970719,46433.0,46429.0,0.21545]
[1641355911375,0.31470719,46433.0,46429.0,0.21545]
[1641355911575,0.41470719,46433.0,46429.0,0.21545]
[1641355912580,0.053865,46431.0,46429.0,0.21545]
[1641355913403,0.056865,46431.0,46429.0,0.21545]
[1641355913605,0.003,46431.0,46429.0,0.21545]
[1641355914806,0.00194477,46430.0,46429.0,0.21545]
[1641355915407,0.00494477,46430.0,46429.0,0.21545]
[1641355916209,0.22494477,46430.0,46429.0,0.21545]
[1641355916854,0.22194477,46430.0,46429.0,0.21545]
[1641355917455,0.22494477,46430.0,46429.0,0.21545]
[1641355918755,0.22194477,46430.0,46429.0,0.21545]
[1641355919554,0.22494477,46430.0,46429.0,0.21545]
[1641355922809,0.22194477,46430.0,46429.0,0.21545]
[1641355923308,0.22194477,46430.0,46429.0,0.570399]
[1641355923510,0.22394477,46430.0,46429.0,0.570399]
[1641355924751,0.22194477,46430.0,46429.0,0.570399]
[1641355925555,0.22394477,46430.0,46429.0,0.570399]
[1641355926754,0.22194477,46430.0,46429.0,0.570399]
[1641355927556,0.22594477,46430.0,46429.0,0.570399]
[1641355928204,0.22594477,46430.0,46429.0,0.83836853]
[1641355928407,0.22594477,46430.0,46429.0,1.97836853]
[1641355928803,0.22194477,46430.0,46429.0,1.97836853]
[1641355929104,0.22194477,46430.0,46429.0,0.83836853]
[1641355929505,0.22394477,46430.0,46429.0,0.90136853]
[1641355930506,0.22394477,46430.0,46429.0,2.09136853]
[1641355930708,0.22394477,46430.0,46429.0,2.02836853]
[1641355930910,0.22194477,46430.0,46429.0,2.02836853]
[1641355931558,0.22194477,46430.0,46429.0,2.09636853]
[1641355933059,0.22194477,46430.0,46429.0,2.02836853]
[1641355933465,0.22194477,46430.0,46429.0,2.10636853]
[1641355934759,0.22194477,46430.0,46429.0,2.02836853]
[1641355935611,0.22194477,46430.0,46429.0,2.10436853]
[1641355936813,0.22194477,46430.0,46429.0,2.02836853]
[1641355937012,0.22194477,46430.0,46429.0,2.02336853]
[1641355937212,0.22145831,46430.0,46429.0,2.02336853]
[1641355937713,0.22145831,46430.0,46429.0,2.09936853]
[1641355938713,0.22145831,46430.0,46429.0,2.02336853]
[1641355939560,0.22145831,46430.0,46429.0,2.09936853]
[1641355940860,0.22,46430.0,46429.0,2.02336853]
[1641355941459,0.22,46430.0,46429.0,2.09936853]
[1641355942907,0.22,46430.0,46429.0,2.02336853]
[1641355943505,0.22,46430.0,46429.0,2.09936853]
[1641355943905,0.22,46430.0,46429.0,2.14936853]
[1641355944906,0.22,46430.0,46429.0,2.07336853]
[1641355945507,0.22,46430.0,46429.0,2.14736853]
[1641355946753,0.22,46430.0,46429.0,2.07336853]
[1641355947355,0.22,46430.0,46429.0,2.06836853]
[1641355947554,0.22,46430.0,46429.0,2.15336853]
[1641355948755,0.22,46430.0,46429.0,2.06836853]
[1641355949658,0.22,46430.0,46429.0,2.15636853]
[1641355950057,0.22,46430.0,46429.0,1.888399]
[1641355950806,0.22,46430.0,46429.0,1.800399]
[1641355951306,0.22,46430.0,46429.0,1.080399]
[1641355951511,0.22,46430.0,46429.0,1.164399]
[1641355952807,0.22,46430.0,46429.0,2.304399]
[1641355953008,0.22,46430.0,46429.0,1.164399]
[1641355953408,0.22,46430.0,46429.0,0.694399]
[1641355953609,0.22,46430.0,46429.0,0.778399]
[1641355954881,0.22,46430.0,46429.0,0.560399]
[1641355955583,0.22,46430.0,46429.0,0.682399]
[1641355956782,0.22,46430.0,46429.0,0.610399]
[1641355957183,0.22,46430.0,46429.0,0.960399]
[1641355957584,0.22,46430.0,46429.0,1.022399]
[1641355958813,0.22,46430.0,46429.0,0.960399]
[1641355959713,0.22,46430.0,46429.0,1.021399]
[1641355960614,0.21951354,46430.0,46429.0,0.671399]
[1641355960814,0.21951354,46430.0,46429.0,0.610399]
[1641355961565,0.21951354,46430.0,46429.0,0.663399]
[1641355961771,0.21951354,46430.0,46429.0,0.90853991]
[1641355961967,0.21951354,46430.0,46429.0,0.663399]
[1641355962363,0.21951354,46430.0,46429.0,0.9088485]
[1641355962765,0.21951354,46430.0,46429.0,0.610399]
[1641355963664,0.21951354,46430.0,46429.0,0.662399]
[1641355964968,0.21951354,46430.0,46429.0,0.610399]
[1641355965610,0.21951354,46430.0,46429.0,0.669399]
[1641355966408,0.21951354,46430.0,46429.0,0.664399]
[1641355966812,0.21951354,46430.0,46429.0,0.605399]
[1641355967008,0.21951354,46430.0,46429.0,1.365399]
[1641355967609,0.21951354,46430.0,46429.0,1.392399]
[1641355968210,0.21951354,46430.0,46429.0,0.682399]
[1641355968810,0.21951354,46430.0,46429.0,0.655399]
[1641355969065,0.21951354,46430.0,46429.0,1.125399]
[1641355969667,0.21951354,46430.0,46429.0,1.180399]
[1641355970768,0.21951354,46430.0,46429.0,1.125399]
[1641355971569,0.21951354,46430.0,46429.0,1.157399]
[1641355972909,0.21951354,46430.0,46429.0,1.125399]
[1641355973708,0.21951354,46430.0,46429.0,1.172399]
[1641355974910,0.21951354,46430.0,46429.0,1.125399]
[1641355975711,0.21951354,46430.0,46429.0,1.192399]
[1641355976311,0.21951354,46430.0,46429.0,1.612399]
[1641355976962,0.21951354,46430.0,46429.0,1.545399]
[1641355977565,0.21951354,46430.0,46429.0,1.603399]
[1641355977875,0.15771161,46445.0,46443.0,0.53646868]
[1641355978073,0.16157568,46455.0,46443.0,0.53646868]
[1641355978074,0.1,46453.0,46445.0,0.20836622]
[1641355978368,0.1,46453.0,46448.0,0.00124162]
[1641355978566,0.01703136,46464.0,46463.0,0.00129027]
[1641355978865,0.01703136,46464.0,46463.0,0.09160027]
[1641355978866,0.67869844,46464.0,46463.0,0.09160027]
[1641355979067,0.30869844,46464.0,46463.0,0.09031]
[1641355979265,0.66364744,46464.0,46462.0,0.032]
[1641355979465,0.354949,46463.0,46462.0,0.032]
[1641355980419,0.354949,46463.0,46462.0,0.085826]
[1641355981622,0.354949,46463.0,46462.0,0.095826]
[1641355982721,0.354949,46463.0,46462.0,0.095886]
[1641355982923,0.354949,46463.0,46462.0,0.085886]
[1641355983123,0.35009808,46464.0,46462.0,0.03206]
[1641355983721,0.35009808,46464.0,46462.0,0.03606]
[1641355983964,0.29626708,46464.0,46462.0,0.03606]
[1641355984166,0.29626708,46464.0,46462.0,0.089888]
[1641355984365,0.0006171,46465.0,46462.0,0.089888]
[1641355984567,0.0006171,46465.0,46463.0,0.107653]
[1641355985667,0.0006171,46465.0,46464.0,0.35621595]
[1641355985867,0.0006171,46465.0,46464.0,0.82621595]
[1641355986066,0.0006171,46465.0,46464.0,0.40621595]
[1641355986466,0.29198085,46473.0,46464.0,0.40621595]
[1641355986669,0.0046,46477.0,46470.0,0.053814]
[1641355986868,0.0046,46477.0,46470.0,0.107629]
[1641355987068,0.0046,46477.0,46470.0,0.053814]
[1641355987472,0.102115,46478.0,46470.0,0.053814]
[1641355987716,0.33631561,46475.0,46470.0,0.066814]
[1641355988515,0.33631561,46475.0,46472.0,0.107629]
[1641355988716,0.33631561,46475.0,46473.0,0.053815]
[1641355989716,0.33631561,46475.0,46473.0,0.064815]
[1641355990019,0.33631561,46475.0,46473.0,0.118629]
[1641355991017,0.33631561,46475.0,46473.0,0.107629]